bitfinex-derivatives/quotes_ETHF0:USTF0_20251204
["timestamp","ask_amount","ask_price","bid_price","bid_amount"]
[1764808989014,5.71103209,3195.6,3195.1,0.00387417]
[1764808989218,2.1965,3195.2,3195.1,2.23487417]
[1764808991514,2.1965,3195.2,3195.1,1.13887417]
[1764808991920,2.1965,3195.2,3195.1,2.23487417]
[1764808992317,2.50320541,3195.2,3195.1,1.13887417]
[1764808992512,0.7139,3195.5,3195.1,1.09987417]
[1764808992714,2.9104,3195.5,3195.4,1.135]
[1764808992913,3.21709541,3195.5,3195.4,1.135]
[1764808993117,2.1965,3195.2,3195.1,1.13887417]
[1764808993623,2.1965,3195.2,3195.1,2.23487417]
[1764808994319,2.9104,3195.5,3195.4,2.231]
[1764808994517,2.1965,3194.9,3194.8,0.00469932]
[1764808994718,5.71099296,3194.9,3194.8,0.00469932]
[1764808995726,5.71099296,3194.9,3194.8,0.00844532]
[1764808996428,5.71099296,3194.9,3194.0,3.2078]
[1764808996619,0.30669296,3194.8,3194.0,3.2078]
[1764808997015,1.1599,3193.7,3193.6,5.45859664]
[1764808997221,2.9104,3194.0,3193.9,2.231]
[1764808997425,2.91388058,3194.0,3193.9,2.2341107]
[1764808997621,2.91388058,3194.0,3193.9,1.1381107]
[1764808997822,2.91388058,3194.0,3193.9,0.0031107]
[1764808998127,1.16338058,3194.0,3193.9,2.2341107]
[1764808998327,0.00348058,3194.0,3193.9,2.2341107]
[1764809000230,2.19998058,3194.0,3193.9,2.2341107]
[1764809000429,2.91388058,3194.0,3193.9,1.1381107]
[1764809000623,1.16338058,3194.0,3193.9,2.2341107]
[1764809001026,0.00348058,3194.0,3193.9,2.2341107]
[1764809001922,1.16459932,3194.3,3194.2,2.231]
[1764809002225,2.20119932,3194.3,3194.2,2.231]
[1764809002930,2.20490408,3194.3,3194.2,2.231]
[1764809003533,2.20490408,3194.3,3194.2,1.135]
[1764809003733,0.00840408,3194.3,3194.2,2.231]
[1764809004339,1.16830408,3194.3,3194.2,2.231]
[1764809005129,0.00840408,3194.3,3194.2,2.231]
[1764809005331,0.00840408,3194.3,3194.2,4.3502894]
[1764809005531,3.2078,3194.9,3194.8,2.231]
[1764809006836,0.00380407,3194.9,3194.8,2.231]
[1764809007231,0.00380407,3194.9,3194.8,5.4388]
[1764809007437,3.2078,3195.4,3195.3,2.231]
[1764809007637,5.4043,3195.4,3195.3,2.231]
[1764809008538,1.16317593,3195.4,3195.3,2.231]
[1764809008738,0.00327593,3195.4,3195.3,2.231]
[1764809011742,0.00469932,3195.7,3195.6,2.231]
[1764809012036,0.00469932,3195.7,3195.6,5.4388]
[1764809012837,0.00870063,3195.7,3195.6,5.4388]
[1764809013034,0.00870063,3195.7,3195.6,2.231]
[1764809014844,0.00870063,3195.7,3195.6,5.4388]
[1764809015241,5.5234,3196.4,3196.3,2.2703]
[1764809015442,5.5234,3196.4,3195.6,3.2078]
[1764809016342,5.52589352,3196.4,3195.6,3.21111672]
[1764809016739,5.52589352,3196.4,3195.6,0.00331672]
[1764809020438,5.52589352,3196.4,3195.6,3.21111672]
[1764809021641,5.29719352,3196.4,3196.3,1.9997]
[1764809022345,4.28269352,3196.4,3196.3,1.9997]
[1764809022534,1.07489352,3196.4,3196.3,1.9997]
[1764809023344,0.00249352,3196.4,3196.3,1.9997]
[1764809023549,1.6787,3197.5,3196.5,0.5915]
[1764809023737,0.7139,3198.0,3197.4,5.3270894]
[1764809023942,0.6063,3198.5,3197.9,2.1192894]
[1764809024144,0.6063,3198.5,3197.8,3.36412]
[1764809024145,2.0869,3198.3,3198.2,3.5443]
[1764809024439,2.0869,3197.9,3197.8,3.5443]
[1764809024646,2.09050119,3197.9,3197.8,3.54679743]
[1764809024844,0.00360119,3197.9,3197.8,3.88329743]
[1764809025840,0.6063,3198.5,3198.4,0.673]
[1764809026039,1.6787,3198.5,3198.4,0.673]
[1764809026240,1.6787,3198.0,3197.9,0.673]
[1764809026440,0.6063,3198.0,3197.9,0.673]
[1764809026635,0.6063,3198.5,3198.4,0.673]
[1764809026839,2.6932,3199.0,3198.9,0.3365]
[1764809027040,2.6968478,3199.0,3198.9,0.673]
[1764809027243,1.6823478,3199.0,3198.9,0.673]
[1764809027439,2.6968478,3199.0,3198.9,0.3365]
[1764809028036,1.6823478,3199.0,3198.9,0.673]
[1764809028444,2.0869,3198.9,3198.4,3.2078]
[1764809028644,2.6932,3198.5,3198.4,3.2078]
[1764809029944,2.6932,3198.5,3198.4,3.5443]
[1764809030153,2.6932,3198.5,3198.4,3.2078]
[1764809030643,1.0724,3197.9,3197.8,5.20999743]
[1764809030944,3.8141,3198.5,3197.8,5.20999743]
[1764809031654,2.0869,3198.1,3197.8,3.21029743]
[1764809031853,3.8141,3198.5,3198.0,2.5912]
[1764809032040,2.0869,3198.1,3198.0,2.5912]
[1764809032246,1.0724,3198.1,3198.0,2.5912]
[1764809032846,2.0869,3198.1,3198.0,1.0021]
[1764809034048,2.0869,3198.1,3198.0,1.9997]
[1764809034750,2.0869,3198.1,3198.0,1.0021]
[1764809034956,2.0869,3197.9,3197.8,1.00459743]
[1764809035253,5.2947,3198.1,3198.0,2.5912]
[1764809035945,2.0869,3198.1,3198.0,2.5912]
[1764809036354,1.0724,3198.1,3198.0,2.5912]
[1764809037446,5.901,3198.5,3198.4,1.0021]
[1764809037948,5.901,3198.5,3198.0,0.5915]
[1764809038251,2.0869,3198.1,3198.0,1.0021]
[1764809038441,1.0724,3197.9,3197.8,3.21029743]
[1764809038646,2.0869,3197.9,3197.8,4.21239743]
[1764809038848,5.2947,3197.9,3197.8,1.00459743]
[1764809040346,5.2947,3197.9,3197.8,2.00219743]
[1764809040745,4.2802,3197.9,3197.8,2.00219743]
[1764809040945,3.2078,3197.9,3197.8,2.00219743]
[1764809041950,4.2802,3197.9,3197.8,2.00219743]
[1764809042147,3.2078,3197.9,3197.8,2.00219743]
[1764809042347,4.2802,3197.9,3197.8,2.00219743]
[1764809042548,1.0724,3197.9,3197.8,2.00219743]
[1764809042943,5.2947,3198.4,3198.3,1.0021]
[1764809043150,5.2947,3198.4,3198.3,1.9997]
[1764809044049,5.2947,3198.4,3198.0,0.5915]
[1764809044249,2.3155,3198.1,3198.0,3.049]
[1764809044454,1.3307,3198.1,3198.0,3.049]
[1764809044757,2.3155,3198.1,3198.0,3.049]
[1764809046054,2.3155,3198.1,3198.0,2.4575]
[1764809046254,2.3155,3198.1,3198.0,1.382]
[1764809046767,2.3155,3198.1,3198.0,2.4575]
[1764809047356,3.2078,3198.4,3198.3,2.4575]
[1764809047554,5.5233,3198.4,3198.3,2.4575]
[1764809047752,2.3155,3198.4,3198.3,2.4575]
[1764809049853,2.04373243,3199.8,3198.3,2.4575]
[1764809049854,2.23557987,3200.9,3200.2,0.15621]
[1764809050052,0.8176,3201.0,3200.8,5.09530243]
[1764809050250,3.11990961,3201.0,3200.9,4.02188652]
[1764809050762,4.38288109,3201.0,3200.9,4.0251359]
[1764809051259,2.3155,3200.7,3200.6,0.83065425]
[1764809051561,3.1331,3200.5,3200.4,4.03845425]
[1764809051762,3.1331,3200.5,3200.4,3.2078]
[1764809051963,3.1331,3200.5,3200.4,5.09530243]
[1764809051964,2.1483,3200.5,3200.4,5.09530243]
[1764809052259,2.1483,3200.5,3200.4,5.09905232]
[1764809052660,4.39265877,3200.5,3200.4,4.04230299]
[1764809054254,4.39265877,3200.5,3200.4,3.21154989]
[1764809054654,4.39265877,3200.5,3200.4,0.00374989]
[1764809059561,2.3155,3200.3,3200.2,0.00469189]
[1764809060558,2.3155,3200.3,3200.2,0.00789151]
[1764809061564,3.57505877,3200.3,3200.2,0.00789151]
[1764809064169,3.57505877,3200.3,3200.0,3.2078]
[1764809064170,2.3155,3200.1,3200.0,3.2078]
[1764809064466,2.3155,3200.1,3200.0,4.021707]
[1764809064663,3.57505877,3200.1,3200.0,4.021707]
[1764809065270,3.57505877,3200.1,3200.0,4.02576225]
[1764809065667,0.00466714,3200.4,3200.0,4.02576225]
[1764809065867,1.3307,3200.1,3200.0,3.21185525]
[1764809066072,2.3155,3200.1,3200.0,4.05611908]
[1764809066673,3.57505877,3200.1,3200.0,4.05611908]
[1764809068171,3.57505877,3200.1,3200.0,1.908e-05]
[1764809068473,2.3155,3199.8,3199.7,0.83457251]
[1764809068670,3.1331,3199.0,3198.9,3.2078]
[1764809069268,3.1331,3199.0,3198.9,3.21152077]
[1764809069467,3.1331,3199.0,3198.9,0.00372077]
[1764809071265,3.2078,3199.4,3198.9,2.46122077]
[1764809071465,5.5233,3199.4,3199.3,1.382]
[1764809071869,5.5233,3199.4,3198.9,1.8912232]
[1764809072264,5.5233,3199.4,3199.3,1.382]
[1764809072974,3.1331,3199.5,3199.4,1.382]
[1764809073172,3.1331,3199.5,3198.9,3.57305126]
[1764809073377,3.1331,3199.0,3198.9,2.71932077]
[1764809073570,1.3307,3199.0,3198.9,2.71932077]
[1764809073770,4.8577,3199.5,3199.4,3.942]
[1764809073975,4.8577,3199.5,3199.4,2.6084]
[1764809074577,4.8577,3199.5,3199.1,3.55048749]
[1764809074775,2.6832,3199.2,3199.1,7.49248749]
[1764809074975,4.0401,3199.2,3199.1,4.49590243]
[1764809075278,4.0401,3199.2,3199.1,2.6084]
[1764809076675,7.2479,3199.8,3199.7,2.6084]
[1764809076982,2.6832,3199.3,3199.2,7.1498]
[1764809077277,2.6832,3199.3,3199.2,8.81278506]
[1764809077773,3.2078,3199.8,3199.2,8.81278506]
[1764809078177,2.6832,3199.3,3199.2,7.1498]
[1764809078479,2.6832,3199.3,3199.2,8.81278506]
[1764809079676,3.2078,3199.8,3199.2,8.81278506]
[1764809080281,1.4973,3199.5,3199.1,2.6502]
[1764809080582,2.4155,3199.5,3199.4,5.1084]
[1764809080781,6.5699,3199.5,3199.4,5.94246209]
[1764809081173,3.9128,3199.5,3199.4,5.94246209]
[1764809081374,2.4155,3199.5,3199.4,5.94246209]
[1764809081881,5.0726,3199.5,3199.4,5.94246209]
[1764809082473,6.5699,3199.5,3199.4,3.29226209]
[1764809084284,6.5699,3199.5,3199.4,0.83406209]
[1764809086886,6.5699,3199.5,3199.4,3.29226209]
[1764809087287,6.5699,3199.5,3199.4,7.61154729]
[1764809088683,3.2078,3200.2,3199.6,5.1084]
[1764809088888,5.0726,3199.6,3199.5,1.6690852]
[1764809089086,5.0726,3199.6,3199.5,0.83522204]
[1764809089890,5.37883475,3199.6,3199.5,0.83522204]
[1764809095595,5.0726,3199.1,3199.0,1.6690852]
[1764809095788,5.0726,3199.1,3198.2,1.88750243]
[1764809095789,6.5699,3199.0,3198.6,1.67377709]
[1764809096098,5.0726,3198.7,3198.6,5.11309189]
[1764809096488,5.0726,3198.7,3198.6,6.78640614]
[1764809096796,5.07526539,3198.7,3198.6,6.78881763]
[1764809097801,5.07526539,3198.7,3198.6,5.11550338]
[1764809098698,5.07526539,3198.7,3198.6,2.46530338]
[1764809099197,5.07526539,3198.7,3198.6,0.00710338]
[1764809099402,5.07526539,3198.7,3198.6,1.12249576]
[1764809100300,5.38178059,3198.7,3198.6,1.12249576]
[1764809101200,5.38178059,3198.7,3198.6,3.58069576]
[1764809101391,5.07526539,3198.7,3198.6,1.12249576]
[1764809103004,2.41816539,3198.7,3198.6,6.23089576]
[1764809103210,5.07526539,3198.7,3198.6,6.23089576]
[1764809103999,3.8807,3199.5,3199.4,2.4775]
[1764809104198,3.8807,3199.5,3199.4,5.86285694]
[1764809104392,8.0393,3199.7,3199.6,4.7483]
[1764809104799,4.8315,3199.7,3199.6,4.7483]
[1764809105098,4.83376216,3199.7,3199.6,5.86193339]
[1764809105306,2.38566216,3199.7,3199.6,6.42013542]
[1764809105990,2.38566216,3199.7,3199.6,4.7483]
[1764809106209,4.83376216,3199.7,3199.6,4.7483]
[1764809106496,0.00226216,3199.7,3199.6,4.7483]
[1764809106703,5.5912,3200.1,3200.0,4.7483]
[1764809107298,8.0393,3200.1,3200.0,4.7483]
[1764809107700,8.04273317,3200.1,3200.0,0.82278044]
[1764809108009,2.3834,3198.8,3198.7,7.9561]
[1764809108301,4.8315,3198.8,3198.7,3.2078]
[1764809108496,4.8315,3198.7,3198.0,0.484]
[1764809108805,3.2078,3198.8,3197.8,3.2078]
[1764809108806,4.8315,3197.9,3197.8,7.9561]
[1764809109208,3.2078,3198.4,3197.8,7.9561]
[1764809109605,4.8315,3197.9,3197.8,5.4786]
[1764809109800,4.8315,3197.9,3197.8,7.9631165]
[1764809109997,4.8315,3197.9,3197.8,3.2148165]
[1764809110199,4.8315,3197.9,3197.8,0.0070165]
[1764809110709,8.0393,3197.9,3197.8,0.0070165]
[1764809110904,4.8315,3197.0,3196.9,3.2078]
[1764809111105,2.3834,3196.6,3196.5,6.1541]
[1764809111413,1.3025,3197.0,3196.5,6.1541]
[1764809111807,3.2078,3197.3,3196.5,6.1541]
[1764809111995,3.21142152,3197.3,3196.6,0.00469189]
[1764809112198,0.00362152,3197.3,3197.2,4.7483]
[1764809112401,0.00362152,3197.3,3197.0,1.4058]
[1764809112402,2.3834,3197.1,3197.0,6.1541]
[1764809112601,4.8315,3197.1,3196.6,2.11975649]
[1764809113313,4.8315,3197.1,3196.6,0.00469189]
[1764809114709,4.8315,3196.7,3196.6,0.00469189]
[1764809118010,2.4481,3195.6,3195.5,5.4786]
[1764809118214,3.2078,3196.2,3195.5,7.9561]
[1764809118519,3.2078,3196.2,3196.1,4.7483]
[1764809118916,3.2078,3196.2,3196.1,4.75094182]
[1764809119211,5.5912,3196.2,3196.1,4.75094182]
[1764809119615,8.0393,3196.2,3196.1,2.27344182]
[1764809119802,8.0393,3196.2,3196.1,0.00264182]
[1764809121511,5.5912,3196.2,3196.1,4.75094182]
[1764809122021,8.0393,3196.2,3196.1,4.75094182]
[1764809122812,8.0393,3196.2,3196.1,2.27344182]
[1764809123109,8.0393,3196.2,3196.1,0.00264182]
[1764809124810,4.8315,3196.2,3196.1,2.27344182]
[1764809125010,2.3834,3196.2,3196.1,4.75094182]
[1764809125215,1.41349189,3196.5,3196.1,4.75094182]
[1764809126820,4.83619189,3196.5,3196.4,2.2708]
[1764809127012,0.00469189,3196.5,3196.4,4.7483]
[1764809127909,2.38809189,3196.5,3196.4,4.7483]
[1764809128309,4.8315,3196.3,3196.2,2.2708]
[1764809128508,4.8315,3196.2,3196.1,2.27344182]
[1764809128909,4.8315,3196.2,3196.1,4.75094182]
[1764809129108,2.3834,3196.2,3196.1,4.75094182]
[1764809129617,0.00469189,3196.5,3196.4,4.7483]
[1764809129804,0.00469189,3196.5,3196.4,6.8633646]
[1764809130006,3.2078,3197.0,3196.9,4.7483]
[1764809130623,5.5912,3197.0,3196.9,4.7483]
[1764809131118,3.2078,3197.0,3196.9,4.7483]
[1764809131618,4.8315,3196.9,3196.8,2.2708]
[1764809133814,4.8315,3196.9,3196.8,4.7483]
[1764809134824,4.8315,3196.9,3196.8,2.2708]
[1764809135510,2.4123,3196.6,3196.5,9.23385285]
[1764809135822,2.4123,3196.6,3196.5,7.11878825]
[1764809135823,4.7182,3196.6,3196.5,7.11878825]
[1764809136023,4.7182,3196.6,3196.5,4.8804]
[1764809136422,2.4123,3196.6,3196.5,4.8804]
[1764809136625,2.4123,3196.6,3196.5,6.317]
[1764809137928,2.4123,3196.6,3196.5,7.43351353]
[1764809138129,2.4123,3196.6,3196.5,6.317]
[1764809138624,3.2078,3197.0,3196.9,4.9602]
[1764809138825,2.399,3197.1,3197.0,2.5548]
[1764809139028,4.7674,3196.9,3196.8,3.67263817]
[1764809139229,4.7674,3196.9,3196.8,2.5548]
[1764809140228,5.0959825,3196.9,3196.8,4.21953262]
[1764809140732,5.0959825,3196.9,3196.8,1.66473262]
[1764809141125,4.7674,3196.9,3196.8,1.66473262]
[1764809141326,4.7674,3196.9,3196.8,4.21953262]
[1764809143731,4.7674,3196.9,3196.8,6.78193262]
[1764809146628,4.77571341,3197.3,3197.2,2.5548]
[1764809146929,4.77571341,3197.3,3197.2,5.95591877]
[1764809146930,2.7052367,3197.3,3197.2,5.95591877]
[1764809147130,0.00831341,3197.3,3197.2,5.1172]
[1764809148729,0.00469189,3197.3,3197.2,5.27355]
[1764809148935,5.09577541,3197.8,3197.7,2.5548]
[1764809149133,0.32837541,3197.8,3197.7,5.95522584]
[1764809149332,5.5762,3197.9,3197.8,5.1172]
[1764809149528,5.90448548,3197.9,3197.8,5.1172]
[1764809149926,5.90750369,3197.9,3197.8,5.1172]
[1764809150132,8.30650369,3197.9,3197.8,5.95465034]
[1764809151533,5.57921821,3197.9,3197.8,5.95465034]
[1764809152333,7.97821821,3197.9,3197.8,5.95465034]
[1764809152833,7.97821821,3197.9,3197.8,0.83745034]
[1764809153334,7.97821821,3197.9,3197.6,0.83745034]
[1764809153335,4.7674,3197.7,3197.6,0.83745034]
[1764809153636,4.7674,3197.7,3197.1,2.1150646]
[1764809153637,4.7674,3196.5,3196.4,1.66473262]
[1764809153838,0.9415,3197.0,3196.2,4.21953262]
[1764809153839,2.3684,3196.3,3196.2,4.21953262]
[1764809154028,4.7674,3196.2,3196.1,4.22217444]
[1764809154233,4.7674,3196.2,3196.1,2.55744182]
[1764809154433,4.7674,3196.2,3196.1,0.00264182]
[1764809154631,4.7674,3195.9,3195.8,0.00469189]
[1764809154936,2.3684,3195.9,3195.8,5.12189189]
[1764809155632,4.7674,3195.9,3195.8,5.12189189]
[1764809155832,4.7674,3195.9,3195.8,5.12471186]
[1764809156038,4.7674,3195.9,3195.8,2.56231186]
[1764809156337,4.7674,3195.9,3195.8,0.00751186]
[1764809156735,4.7674,3195.9,3195.8,2.56231186]
[1764809158539,4.7674,3195.9,3195.8,0.00751186]
[1764809160530,4.7674,3195.9,3195.1,1.66473262]
[1764809160735,2.3684,3195.2,3195.1,6.78193262]
[1764809161030,4.7674,3195.2,3195.1,1.66473262]
[1764809161235,3.2078,3195.6,3195.0,9.7393]
[1764809161436,3.21086356,3195.6,3195.0,9.74181766]
[1764809161638,4.7674,3195.1,3195.0,9.74650955]
[1764809161940,4.7674,3195.1,3195.0,2.56200955]
[1764809162132,4.7674,3195.1,3195.0,0.00720955]
[1764809162328,4.7674,3194.7,3194.6,3.2078]
[1764809162834,4.7674,3194.6,3194.5,1.4143]
[1764809163036,4.7674,3194.6,3194.1,3.2078]
[1764809163540,2.4049,3194.2,3194.1,8.08330215]
[1764809163737,4.8228,3194.2,3194.1,0.00300215]
[1764809164236,4.8228,3194.2,3194.1,2.30960215]
[1764809164837,4.8228,3194.2,3194.1,0.00300215]
[1764809165334,3.21249189,3194.7,3194.6,4.8725]
[1764809165529,4.8228,3194.6,3194.1,0.00300215]
[1764809165731,4.8228,3194.2,3194.1,2.30960215]
[1764809165936,4.8228,3194.2,3194.1,0.00300215]
[1764809166540,3.2078,3194.3,3194.1,4.87550215]
[1764809166738,3.2078,3194.3,3194.2,4.8725]
[1764809167342,5.6127,3194.3,3194.2,4.8725]
[1764809168444,3.2078,3194.3,3194.2,4.8725]
[1764809168642,0.00469189,3194.7,3194.6,4.8725]
[1764809168643,3.21249189,3194.7,3194.6,4.8725]
[1764809170145,2.4049,3194.3,3194.1,0.00300215]
[1764809170336,3.21249189,3194.7,3194.1,4.87550215]
[1764809170939,4.8228,3194.2,3194.1,2.30960215]
[1764809171136,4.8228,3194.2,3194.1,0.00300215]
[1764809171348,4.8228,3194.2,3194.1,2.30960215]
[1764809172246,4.8228,3194.2,3194.1,0.00300215]
[1764809175348,4.8228,3193.6,3193.5,3.7209]
[1764809175540,3.2078,3193.8,3193.3,6.76426129]
[1764809175842,2.4049,3193.4,3193.3,2.3066]
[1764809176043,4.8228,3193.2,3192.6,3.2078]
[1764809176249,4.82517462,3193.2,3193.1,0.00366308]
[1764809178251,0.00237462,3193.2,3193.1,0.00366308]
[1764809178439,0.00237462,3193.2,3193.1,4.87616308]
[1764809179955,4.82517462,3193.2,3193.1,0.00366308]
[1764809180147,4.8228,3192.7,3192.6,3.2078]
[1764809180355,4.8228,3192.7,3191.5,1.4964]
[1764809180356,4.8228,3192.1,3191.5,1.4964]
[1764809180654,2.4049,3191.6,3191.5,1.4964]
[1764809180842,3.2078,3191.8,3191.5,3.803]
[1764809181245,3.2078,3191.8,3191.5,3.8052559]
[1764809182049,4.8228,3191.6,3191.5,0.0022559]
[1764809182351,4.8228,3191.4,3191.3,3.2078]
[1764809182546,2.4049,3191.4,3191.3,3.2078]
[1764809182750,3.2078,3191.8,3191.4,1.4964]
[1764809183145,2.4049,3191.5,3191.1,1.89176129]
[1764809183349,2.4049,3191.5,3191.4,2.3066]
[1764809183551,3.2078,3192.2,3191.4,3.803]
[1764809183753,3.2078,3192.2,3191.5,1.89176129]
[1764809184248,2.4049,3191.6,3191.5,1.89176129]
[1764809184651,1.0897,3192.5,3191.1,0.00405854]
[1764809184652,2.4049,3191.4,3191.1,1.89581983]
[1764809184855,4.8228,3191.2,3191.1,0.00405854]
[1764809185654,4.8228,3190.9,3190.8,3.2078]
[1764809186753,4.82639032,3190.9,3190.8,0.00239308]
[1764809188446,0.00359032,3190.9,3190.8,0.00239308]
[1764809188660,0.00359032,3190.9,3190.8,6.37129308]
[1764809189766,0.00359032,3190.9,3190.8,8.26305437]
[1764809190056,0.00359032,3190.9,3190.8,3.80539308]
[1764809190257,0.00359032,3190.9,3190.8,8.26305437]
[1764809192265,0.00469954,3191.2,3191.1,4.8725]
[1764809193262,0.00797736,3191.2,3191.1,4.8725]
[1764809194861,0.00797736,3191.2,3191.1,6.76426129]
[1764809195962,0.00797736,3191.2,3191.1,6.92091129]
[1764809196567,3.2078,3192.2,3191.7,4.5949]
[1764809196768,3.2078,3192.2,3191.8,1.89176129]
[1764809197062,5.368,3192.2,3192.1,2.1975]
[1764809197365,7.7267,3192.2,3191.8,1.89176129]
[1764809197563,7.73014021,3192.2,3191.8,1.89176129]
[1764809197760,2.1602,3191.9,3191.8,4.08926129]
[1764809198163,2.1602,3191.9,3191.8,6.48666129]
[1764809198367,3.21124021,3192.2,3191.8,6.48666129]
[1764809198963,5.37144021,3192.2,3192.1,2.1975]
[1764809199269,3.21124021,3192.2,3192.1,4.2487]
[1764809199659,3.21124021,3192.2,3192.1,4.4053]
[1764809199866,5.3386,3192.8,3192.7,4.2289]
[1764809200066,7.4522,3192.8,3192.5,1.2302]
[1764809200468,4.2444,3192.6,3192.5,3.4079]
[1764809200868,4.24714879,3192.6,3192.5,3.4079]
[1764809201865,0.00274879,3192.6,3192.5,5.4591]
[1764809202972,2.13354879,3192.6,3192.5,5.4591]
[1764809203862,0.00274879,3192.6,3192.5,5.4591]
[1764809204064,4.2444,3192.1,3192.0,4.438]
[1764809204266,4.24714879,3192.6,3192.5,3.4079]
[1764809204471,4.57463417,3192.6,3192.5,1.2302]
[1764809204776,4.57463417,3192.6,3192.0,4.438]
[1764809204977,0.32748538,3192.5,3192.0,4.438]
[1764809205171,0.32774075,3192.4,3192.0,4.438]
[1764809205473,4.2444,3192.1,3192.0,3.2078]
[1764809205670,4.57214549,3192.1,3192.0,3.2078]
[1764809206067,4.2444,3191.8,3191.7,0.00469954]
[1764809206267,4.57214549,3191.8,3191.7,0.00469954]
[1764809206561,4.2444,3191.1,3191.0,1.2302]
[1764809206767,2.1308,3191.0,3190.8,1.1134913]
[1764809206966,2.1308,3191.0,3190.8,0.00239308]
[1764809207166,2.1308,3190.9,3190.8,0.00239308]
[1764809207567,4.2444,3190.9,3190.8,0.00239308]
[1764809208270,0.00469954,3191.2,3191.1,4.2289]
[1764809208469,0.33276648,3191.2,3191.1,4.2289]
[1764809208670,0.00469954,3191.2,3191.1,4.2289]
[1764809209779,2.13549954,3191.2,3191.1,2.1777]
[1764809209973,2.4635451,3191.2,3191.1,2.1777]
[1764809210176,0.3327451,3191.2,3191.1,4.2289]
[1764809210371,0.00469954,3191.2,3191.1,4.2289]
[1764809211181,2.13549954,3191.2,3191.1,4.2289]
[1764809211482,2.4635451,3191.2,3191.1,4.2289]
[1764809212784,4.5771451,3191.2,3191.1,2.1777]
[1764809212981,2.4635451,3191.2,3191.1,2.1777]
[1764809213281,2.4635451,3191.2,3191.1,4.2289]
[1764809213579,2.13549954,3191.2,3191.1,4.2289]
[1764809213774,2.46390799,3191.2,3191.1,4.2289]
[1764809214177,0.00469954,3191.2,3191.1,4.2289]
[1764809214585,0.00469954,3191.2,3191.1,5.06944584]
[1764809214789,3.2078,3191.5,3191.4,4.2289]
[1764809216679,0.00469954,3191.8,3191.4,4.2289]
[1764809216680,0.00469954,3191.8,3191.7,4.2289]
[1764809216880,0.00469954,3191.8,3191.7,5.33999822]
[1764809218291,3.2078,3192.3,3192.2,4.2289]
[1764809218888,7.4522,3192.3,3192.2,2.1777]
[1764809219488,4.2444,3192.1,3192.0,0.83984565]
[1764809220390,4.2444,3192.0,3191.9,0.83984565]
[1764809220581,5.3386,3192.3,3192.2,2.1777]
[1764809220887,3.2078,3192.3,3192.2,4.2289]
[1764809221480,3.2078,3192.3,3192.2,5.3486942]
[1764809222084,0.00744833,3192.6,3192.5,5.4591]
[1764809223083,7.4522,3193.2,3193.1,2.1777]
[1764809223384,5.66691988,3193.2,3193.1,4.2289]
[1764809223688,3.2078,3193.2,3193.1,4.2289]
[1764809224084,5.41702989,3193.2,3193.1,4.23179535]
[1764809224283,7.49252989,3193.2,3193.1,2.18059535]
[1764809224683,7.49252989,3193.2,3193.1,0.00289535]
[1764809227684,1.67259834,3195.0,3193.1,11.10245664]
[1764809227885,1.3145,3195.5,3195.2,4.3409]
[1764809228090,4.2807,3195.4,3195.3,3.2078]
[1764809228783,4.28382236,3195.4,3195.3,3.2078]
[1764809231292,2.20832236,3195.4,3195.3,5.5355]
[1764809231500,0.00312236,3195.4,3195.3,7.5487]
[1764809232498,0.00469954,3195.7,3195.6,4.3409]
[1764809232901,2.20989954,3195.7,3195.6,4.3409]
[1764809233091,4.28539954,3195.7,3195.3,3.2078]
[1764809233396,4.28807313,3195.7,3195.3,3.21063694]
[1764809233800,4.28807313,3195.7,3195.6,2.3277]
[1764809234101,4.28807313,3195.7,3195.3,3.21063694]
[1764809234895,0.00737313,3195.7,3195.6,4.3409]
[1764809235195,2.21257313,3195.7,3195.6,2.3277]
[1764809235902,4.2807,3195.4,3195.3,3.21063694]
[1764809236399,4.2807,3195.1,3195.0,0.00469954]
[1764809236596,4.5223,3195.5,3194.8,3.2078]
[1764809236597,4.2807,3194.9,3194.8,3.2078]
[1764809237098,4.2807,3194.9,3194.4,3.2078]
[1764809237099,2.0755,3194.9,3194.4,3.2078]
[1764809237295,2.0755,3194.9,3193.5,1.2603]
[1764809237296,4.2807,3194.1,3193.5,3.2078]
[1764809237496,4.2807,3194.1,3193.5,3.2155333]
[1764809237903,4.2807,3194.1,3193.5,4.6114333]
[1764809239489,2.2052,3194.1,3194.0,2.3277]
[1764809240497,4.2807,3194.1,3193.5,4.6114333]
[1764809241001,2.2270525,3196.6,3195.0,2.3277]
[1764809241002,3.2078,3195.1,3195.0,2.3277]
[1764809241301,3.2078,3195.5,3195.4,2.3277]
[1764809241600,4.2807,3195.2,3195.1,0.00469954]
[1764809241804,4.2362,3195.5,3195.1,2.33239954]
[1764809242398,2.2052,3195.2,3195.1,0.00469954]
[1764809242900,4.2807,3195.2,3195.1,0.00469954]
[1764809244104,2.2052,3195.2,3195.1,0.00469954]
[1764809245301,2.2052,3195.2,3195.1,2.33239954]
[1764809245509,2.2052,3195.2,3195.1,0.00469954]
[1764809245703,2.2052,3195.2,3195.1,2.33239954]
[1764809245904,3.2078,3195.5,3195.1,4.34559954]
[1764809248105,5.413,3195.5,3195.4,2.3277]
[1764809248403,6.166,3196.3,3195.6,4.3409]
[1764809248404,4.5223,3196.0,3195.6,4.3409]
[1764809248600,3.2078,3196.0,3195.6,4.3409]
[1764809248800,3.2078,3196.4,3195.6,7.5487]
[1764809249811,0.00469954,3196.3,3195.6,7.5487]
[1764809253008,2.20989954,3196.3,3196.2,2.3277]
[1764809253212,2.20989954,3196.3,3196.2,2.33071385]
[1764809253614,2.20989954,3196.3,3196.2,4.34391385]
[1764809253914,4.50959954,3196.3,3196.2,0.00301385]
[1764809254314,5.29034688,3196.3,3196.2,0.00301385]
[1764809256620,5.29034688,3196.3,3195.2,5.7083]
[1764809256621,4.9617,3195.3,3195.2,5.7083]
[1764809256808,1.4475,3196.0,3195.2,8.0659]
[1764809256809,3.2078,3195.8,3195.2,8.0659]
[1764809257010,0.32450768,3195.7,3195.2,8.0659]
[1764809257312,5.28620768,3195.7,3195.6,2.5005]
[1764809257517,5.28620768,3195.7,3195.6,2.50449888]
[1764809258317,5.28620768,3195.7,3195.6,0.00399888]